Service area,Service sub division,TVBC Service,Expense type,Detailed expense type,TVBC account code,Date Paid,Transaction Reference,Nett Value,Supplier Name
Central Services to the Public,Management & Support Services,IT,Supplies & Services,Communications & Computing,Communication Links,26/03/2015,150843,-11455.73,Virgin Media Payments Ltd
Central Services to the Public,Management & Support Services,Estates and Economic Development ,Premises related Expenditure,Energy Costs,Gas,30/03/2015,150618,-1123.34,Total Gas & Power Ltd
Planning & Development,Community Development,Community and Leisure ,Supplies & Services,Grants & Subscriptions,Grants,25/03/2015,150825,500,Charlton & District Playgroup
Planning & Development,Community Development,Community and Leisure ,Supplies & Services,Grants & Subscriptions,Grants,25/03/2015,150830,500,Grateley Village Hall
Planning & Development,Community Development,Community and Leisure ,Supplies & Services,Grants & Subscriptions,Grants,30/03/2015,151382,500,St Francis Church
Planning & Development,Community Development,Community and Leisure ,Supplies & Services,Grants & Subscriptions,Grants,30/03/2015,151383,500,Romsey Cancer Support Centre
Planning & Development,Community Development,Community and Leisure ,Supplies & Services,Grants & Subscriptions,Grants,30/03/2015,151388,500,Wellow Under Fives Preschool
Planning & Development,Community Development,Community and Leisure ,Supplies & Services,Grants & Subscriptions,Grants,30/03/2015,151392,500,Andover Street Pastors
Planning & Development,Community Development,Community and Leisure ,Supplies & Services,Grants & Subscriptions,Grants,30/03/2015,151414,500,Amport & Monxton Community Charity
Planning & Development,Community Development,Community and Leisure ,Supplies & Services,Grants & Subscriptions,Grants,30/03/2015,151468,500,Carers Together
Planning & Development,Economic Development,Estates and Economic Development ,Supplies & Services,Grants & Subscriptions,Grants,30/03/2015,151415,500,4 Walls Project Management
Cultural & Related,Culture & Heritage,Community and Leisure ,Supplies & Services,Miscellaneous Expenses,Booking Of Acts,30/03/2015,150915,500,Lyngo Theatre Company
Planning & Development,Community Development,Community and Leisure ,Supplies & Services,Grants & Subscriptions,Grants,04/03/2015,149025,500,Andover Golf Club
Planning & Development,Community Development,Community and Leisure ,Supplies & Services,Grants & Subscriptions,Grants,25/03/2015,150828,500,Andover Rugby Football Club Ltd
Cultural & Related,Open Spaces,Environmental,Supplies & Services,Miscellaneous Expenses,Health And Safety,19/03/2015,150133,297.1,Occupational Health First
Environmental & Regulatory,Street Cleansing (not chargeable to Highways),Environmental,Supplies & Services,Miscellaneous Expenses,Health And Safety,19/03/2015,150133,28.98,Occupational Health First
Environmental & Regulatory,Waste management,Environmental,Supplies & Services,Miscellaneous Expenses,Health And Safety,19/03/2015,150133,173.92,Occupational Health First
Central Services to the Public,Management & Support Services,Environmental,Transport Related Expenditure,Direct Transport Costs,External Garages,18/03/2015,149134,500,Bodyshop24
Planning & Development,Economic Development,Estates and Economic Development ,Supplies & Services,Grants & Subscriptions,Grants,19/03/2015,150278,500,Personal data - Data Protection Act 1998
Planning & Development,Community Development,Community and Leisure ,Supplies & Services,Grants & Subscriptions,Grants,11/03/2015,147622,500,Mini Merlins & Pendragons Parent & Toddler Gr
Planning & Development,Community Development,Community and Leisure ,Supplies & Services,Grants & Subscriptions,Grants,05/03/2015,149180,500,Abbotts Ann Parish Council
Planning & Development,Community Development,Community and Leisure ,Supplies & Services,Grants & Subscriptions,Grants,19/03/2015,150364,500,Enham Alamein Parish Council
Planning & Development,Community Development,Community and Leisure ,Supplies & Services,Grants & Subscriptions,Grants,19/03/2015,150406,500,Shipton Bellinger Parish Council
Planning & Development,Community Development,Community and Leisure ,Supplies & Services,Grants & Subscriptions,Grants,19/03/2015,150407,500,Appleshaw Parish Council
Planning & Development,Community Development,Community and Leisure ,Supplies & Services,Grants & Subscriptions,Grants,19/03/2015,150408,500,Kimpton Parish Council
Planning & Development,Community Development,Community and Leisure ,Supplies & Services,Grants & Subscriptions,Grants,25/03/2015,150829,500,Portway School Association
Planning & Development,Community Development,Community and Leisure ,Supplies & Services,Grants & Subscriptions,Grants,26/03/2015,150990,500,Broughton Parish Council
Planning & Development,Community Development,Community and Leisure ,Supplies & Services,Grants & Subscriptions,Grants,30/03/2015,151395,500,St Pauls Church Centre
Planning & Development,Community Development,Community and Leisure ,Supplies & Services,Grants & Subscriptions,Grants,30/03/2015,151398,500,Braishfield Parish Council
Planning & Development,Community Development,Community and Leisure ,Supplies & Services,Grants & Subscriptions,Grants,30/03/2015,151481,500,Kimpton Parish Council
Planning & Development,Community Development,Community and Leisure ,Supplies & Services,Grants & Subscriptions,Grants,30/03/2015,151482,500,Quarley Parish Council
Environmental & Regulatory,Waste management,Environmental,Supplies & Services,"Equipment, Furniture & Materials",Purchase Equip + Materials,26/03/2015,150693,418.56,Daniels Healthcare Ltd
Central Services to the Public,Management & Support Services,Environmental,Supplies & Services,"Printing, Stationery & General Office Expenses",Photocopying Costs,05/03/2015,148804,419.71,Ricoh Uk Ltd
Cultural & Related,Culture & Heritage,Estates and Economic Development ,Supplies & Services,Miscellaneous Expenses,Waste Collection,12/03/2015,149889,115.28,Sita Uk Ltd
Central Services to the Public,Management & Support Services,Estates and Economic Development ,Supplies & Services,Miscellaneous Expenses,Waste Collection,12/03/2015,149889,276.09,Sita Uk Ltd
Cultural & Related,Recreation & Sport,Community and Leisure ,Supplies & Services,Miscellaneous Expenses,Waste Collection,12/03/2015,149889,31.41,Sita Uk Ltd
Central Services to the Public,Management & Support Services,Estates and Economic Development ,Supplies & Services,"Printing, Stationery & General Office Expenses",Stationery,12/03/2015,149040,224.43,Supplies Team Ltd
Cultural & Related,Culture & Heritage,Estates and Economic Development ,Supplies & Services,"Equipment, Furniture & Materials",Purchase Equip + Materials,12/03/2015,149040,86.88,Supplies Team Ltd
Cultural & Related,Culture & Heritage,Estates and Economic Development ,Supplies & Services,Catering,Non-Contract Catering,12/03/2015,149040,134.16,Supplies Team Ltd
Cultural & Related,Open Spaces,Environmental,Transport Related Expenditure,Direct Transport Costs,External Garages,26/03/2015,150585,212.25,Oakes Bros Ltd
Cultural & Related,Open Spaces,Environmental,Transport Related Expenditure,Direct Transport Costs,Repair Materials,26/03/2015,150585,211.49,Oakes Bros Ltd
Cultural & Related,Open Spaces,Community and Leisure ,Supplies & Services,"Equipment, Furniture & Materials",Purchase Equip + Materials,05/03/2015,148773,425,Mainwaring Ditch Associates
External Trading Accounts,Industrial Estates,Estates and Economic Development ,Premises related Expenditure,Water Services,Water And Sewerage Charges,12/03/2015,149897,510.14,Southern Water
Central Services to the Public,Management & Support Services,IT,Supplies & Services,"Equipment, Furniture & Materials",Purchase Equip + Materials,26/03/2015,150811,425.53,Xerox (Uk) Ltd
Planning & Development,Development Control,Planning & Building,Supplies & Services,Miscellaneous Expenses,Advertising,12/03/2015,149501,427,Hampshire Media Limited
Central Services to the Public,Management & Support Services,Legal & Democratic,Supplies & Services,"Printing, Stationery & General Office Expenses",Stationery,12/03/2015,149020,13.59,Supplies Team Ltd
Central Services to the Public,Elections,Legal & Democratic,Supplies & Services,"Printing, Stationery & General Office Expenses",Stationery,12/03/2015,149020,413.57,Supplies Team Ltd
Environmental & Regulatory,Street Cleansing (not chargeable to Highways),Environmental,Supplies & Services,"Equipment, Furniture & Materials",Purchase Equip + Materials,30/03/2015,151370,436.46,Groundsman Tools & Supplies
"Highways, Roads & Transport",Public Transport,Plan Pol & Transport,Third Party Payments,Transport Operators in Respect of Concessionary Fares,Voluntary Orgs Reimbursement,05/03/2015,148796,530.55,Shipton Good Neighbours
Cultural & Related,Culture & Heritage,Estates and Economic Development ,Premises related Expenditure,Energy Costs,Gas,30/03/2015,150592,443.55,Total Gas & Power Ltd
Cultural & Related,Culture & Heritage,Community and Leisure ,Supplies & Services,Miscellaneous Expenses,Booking Of Acts,30/03/2015,150918,534.04,Stories And More
Environmental & Regulatory,Waste management,Environmental,Transport Related Expenditure,Direct Transport Costs,Repair Materials,12/03/2015,149000,445.41,Hyphose Ltd
External Trading Accounts,Industrial Estates,Estates and Economic Development ,Supplies & Services,Services,Professional Fees,26/03/2015,150698,450,Kier Ventures Ltd
Central Services to the Public,Management & Support Services,Estates and Economic Development ,Premises related Expenditure,Repairs Alterations & Maintenance of Buildings,Building Maint - Non Estates,26/03/2015,150682,450,Alarms & Electrical (Devizes) Ltd
Central Services to the Public,Management & Support Services,Housing and Environmental Health ,Supplies & Services,"Printing, Stationery & General Office Expenses",Photocopying Costs,26/03/2015,150614,459.66,Ricoh Uk Ltd
Environmental & Regulatory,Waste management,Environmental,Employees,Indirect Employee Expenses,Agency Staff - Waged Posts,19/03/2015,150261,464.4,Simple Recruitment Services Ltd
Cultural & Related,Open Spaces,Environmental,Supplies & Services,"Equipment, Furniture & Materials",Purchase Equip + Materials,30/03/2015,151313,465,Sherriff Amenity
Central Services to the Public,Management & Support Services,Finance,Supplies & Services,"Printing, Stationery & General Office Expenses",Postage Costs,19/03/2015,147104,466.08,Neopost Finance Ltd
Central Services to the Public,Management & Support Services,Estates and Economic Development ,Third Party Payments,Other Establishments,Private Contractors,12/03/2015,149881,560,Ashine Cleaning Services Ltd
Central Services to the Public,Management & Support Services,Estates and Economic Development ,Premises related Expenditure,Repairs Alterations & Maintenance of Buildings,Building Maint - Estates,26/03/2015,150631,471,Alarms & Electrical (Devizes) Ltd
Central Services to the Public,Management & Support Services,Estates and Economic Development ,Supplies & Services,"Printing, Stationery & General Office Expenses",Photocopying Costs,05/03/2015,148802,471.51,Ricoh Uk Ltd
Central Services to the Public,Management & Support Services,Finance,Supplies & Services,"Printing, Stationery & General Office Expenses",Photocopying Costs,05/03/2015,148806,472.31,Ricoh Uk Ltd
Environmental & Regulatory,Street Cleansing (not chargeable to Highways),Environmental,Supplies & Services,"Equipment, Furniture & Materials",Purchase Equip + Materials,26/03/2015,150695,476.6,Groundsman Tools & Supplies
Environmental & Regulatory,Waste management,Environmental,Transport Related Expenditure,Direct Transport Costs,Repair Materials,05/03/2015,148152,483.74,Dennis Eagle Ltd
"Highways, Roads & Transport",Highways and roads - maintenance,Plan Pol & Transport,Supplies & Services,"Equipment, Furniture & Materials",Purchase Equip + Materials,30/03/2015,151238,484.06,Bellstan Ltd
Environmental & Regulatory,Street Cleansing (not chargeable to Highways),Environmental,Transport Related Expenditure,Direct Transport Costs,Repair Materials,30/03/2015,151354,243.04,M D Services
Central Services to the Public,Management & Support Services,Environmental,Transport Related Expenditure,Direct Transport Costs,Repair Materials,30/03/2015,151354,243.04,M D Services
Central Services to the Public,Management & Support Services,Chief Executive's,Employees,Indirect Employee Expenses,Temporary Staff,30/03/2015,151226,490.62,Personnel Selection
Central Services to the Public,Management & Support Services,Housing and Environmental Health ,Supplies & Services,Services,Training Courses,26/03/2015,150734,499,Zurich Insurance Company
Central Services to the Public,Management & Support Services,Housing and Environmental Health ,Supplies & Services,Services,Training Courses,20/03/2015,150619,499,London Development Events Ltd
Planning & Development,Community Development,Community and Leisure ,Supplies & Services,Grants & Subscriptions,Grants,30/03/2015,151386,600,Wellow Short Mat Bowls Club
Central Services to the Public,Management & Support Services,IT,Supplies & Services,Services,Training Courses,19/03/2015,149853,500,Tickets.Com Ltd
Planning & Development,Development Control,Planning & Building,Supplies & Services,Services,Project Consultancy - Policy,26/03/2015,150893,500,The Terra Firma Consultancy Ltd
Planning & Development,Community Development,Community and Leisure ,Supplies & Services,Grants & Subscriptions,Grants,18/03/2015,150280,600,St Swithuns Church
Cultural & Related,Culture & Heritage,Community and Leisure ,Supplies & Services,Services,Tutors,26/03/2015,150808,600,Personal data - Data Protection Act 1998
External Trading Accounts,Industrial Estates,Estates and Economic Development ,Supplies & Services,Communications & Computing,Land Line Telephone Charges,26/03/2015,150804,28.41,Virgin Media Payments Ltd
Cultural & Related,Culture & Heritage,Estates and Economic Development ,Supplies & Services,Communications & Computing,Land Line Telephone Charges,26/03/2015,150804,39.56,Virgin Media Payments Ltd
Cultural & Related,Culture & Heritage,Estates and Economic Development ,Supplies & Services,Communications & Computing,Land Line Telephone Charges,26/03/2015,150804,39.05,Virgin Media Payments Ltd
Central Services to the Public,Management & Support Services,IT,Supplies & Services,Communications & Computing,Communication Links,26/03/2015,150804,26,Virgin Media Payments Ltd
Central Services to the Public,Management & Support Services,IT,Supplies & Services,Communications & Computing,Communication Links,26/03/2015,150804,67,Virgin Media Payments Ltd
Cultural & Related,Recreation & Sport,Community and Leisure ,Supplies & Services,Communications & Computing,Land Line Telephone Charges,26/03/2015,150804,26,Virgin Media Payments Ltd
Cultural & Related,Recreation & Sport,Community and Leisure ,Supplies & Services,Communications & Computing,Land Line Telephone Charges,26/03/2015,150804,14.96,Virgin Media Payments Ltd
Cultural & Related,Recreation & Sport,Community and Leisure ,Supplies & Services,Communications & Computing,Land Line Telephone Charges,26/03/2015,150804,13,Virgin Media Payments Ltd
Cultural & Related,Culture & Heritage,Community and Leisure ,Supplies & Services,Communications & Computing,Communication Links,26/03/2015,150804,52.19,Virgin Media Payments Ltd
"Highways, Roads & Transport",Parking Services,Plan Pol & Transport,Supplies & Services,Communications & Computing,Alarm Lines,26/03/2015,150804,37.1,Virgin Media Payments Ltd
Central Services to the Public,Management & Support Services,Environmental,Supplies & Services,Communications & Computing,Land Line Telephone Charges,26/03/2015,150804,67.84,Virgin Media Payments Ltd
Central Services to the Public,Emergency Planning,Corporate & Democratic,Supplies & Services,Communications & Computing,Land Line Telephone Charges,26/03/2015,150804,91,Virgin Media Payments Ltd
Cultural & Related,Open Spaces,Environmental,Transport Related Expenditure,Direct Transport Costs,Repair Materials,05/03/2015,148182,502.41,New Forest Farm Machinery Ltd
Central Services to the Public,Management & Support Services,Environmental,Supplies & Services,"Equipment, Furniture & Materials",Purchase Equip + Materials,19/03/2015,149674,504.12,Steele Signs
"Highways, Roads & Transport",Highways and roads - maintenance,Plan Pol & Transport,Supplies & Services,"Equipment, Furniture & Materials",Purchase Equip + Materials,30/03/2015,151228,508.69,Bellstan Ltd
Central Services to the Public,Elections,Legal & Democratic,Supplies & Services,Communications & Computing,Software Maintenance,26/03/2015,150136,510,Ncc Services Limited
Cultural & Related,Open Spaces,Environmental,Supplies & Services,"Equipment, Furniture & Materials",Purchase Equip + Materials,05/03/2015,147135,512.5,Gb Sport & Leisure Uk Ltd
External Trading Accounts,Industrial Estates,Estates and Economic Development ,Supplies & Services,Miscellaneous Expenses,Waste Collection,26/03/2015,150677,513,Basingstoke Skip Hire & Sthrn Waste Mgt Ltd
Cultural & Related,Recreation & Sport,Community and Leisure ,Third Party Payments,Private contractors,Main Contractor Costs,19/03/2015,149709,525,Ace Liftaway
Central Services to the Public,Management & Support Services,Estates and Economic Development ,Supplies & Services,"Equipment, Furniture & Materials",Purchase Materials (Job Cost),11/03/2015,149158,536.09,Totton Timber Co Ltd
Environmental & Regulatory,Regulatory Services,Housing and Environmental Health ,Supplies & Services,Grants and subscriptions,Capital Grants,12/03/2015,149892,650,Andover Glass Works Ltd
Cultural & Related,Culture & Heritage,Estates and Economic Development ,Premises related Expenditure,Energy Costs,Gas,30/03/2015,150591,542.57,Total Gas & Power Ltd
Central Services to the Public,Management & Support Services,Estates and Economic Development ,Supplies & Services,"Equipment, Furniture & Materials",Purchase Tools,26/03/2015,150626,548.75,Wessex Fixings
Central Services to the Public,Management & Support Services,Environmental,Transport Related Expenditure,Direct Transport Costs,Repair Materials,12/03/2015,148998,550.59,Dennis Eagle Ltd
Housing Services,Regulatory Services,Housing and Environmental Health ,Transport Related Expenditure,Contract Hire and Operating Leases,Officer lease cars,05/03/2015,149167,661.14,Volkswagen Group Leasing
Cultural & Related,Regulatory Services,Estates and Economic Development ,Premises related Expenditure,Energy Costs,Gas,30/03/2015,150594,551.94,Total Gas & Power Ltd
Cultural & Related,Culture & Heritage,Community and Leisure ,Supplies & Services,Catering,Non-Contract Catering,05/03/2015,149012,553.66,Carlsberg Uk Ltd
Cultural & Related,Culture & Heritage,Community and Leisure ,Supplies & Services,Catering,Caf� Catering supplies,12/03/2015,149505,556.46,Carlsberg Uk Ltd
Central Services to the Public,Management & Support Services,Estates and Economic Development ,Premises related Expenditure,Repairs Alterations & Maintenance of Buildings,Planned Maintenance - Non Est,05/03/2015,148528,558.29,Btu Installation & Maintenance Ltd
Central Services to the Public,Management & Support Services,Estates and Economic Development ,Premises related Expenditure,Repairs Alterations & Maintenance of Buildings,Planned Maintenance - Non Est,05/03/2015,148531,558.29,Btu Installation & Maintenance Ltd
Central Services to the Public,Management & Support Services,Estates and Economic Development ,Premises related Expenditure,Repairs Alterations & Maintenance of Buildings,Planned Maintenance - Non Est,05/03/2015,148532,558.29,Btu Installation & Maintenance Ltd
Central Services to the Public,Management & Support Services,Estates and Economic Development ,Premises related Expenditure,Repairs Alterations & Maintenance of Buildings,Planned Maintenance - Non Est,05/03/2015,148533,558.29,Btu Installation & Maintenance Ltd
Central Services to the Public,Local Tax Collection,Revenues,Supplies & Services,Miscellaneous Expenses,All Pay Fees,12/03/2015,149122,657.77,Allpay Limited
Central Services to the Public,Elections,Legal & Democratic,Supplies & Services,"Printing, Stationery & General Office Expenses",Postage Costs,26/03/2015,150670,570.48,Financial Data Management Plc
Planning & Development,Economic Development,Estates and Economic Development ,Supplies & Services,Services,Training Courses,05/03/2015,149153,685,Sound Decisions Ltd
Central Services to the Public,Management & Support Services,Plan Pol & Transport,Premises related Expenditure,Repairs Alterations & Maintenance of Buildings,General Repairs,05/03/2015,148982,573.23,Volker Highways Ltd
Environmental & Regulatory,Street Cleansing (not chargeable to Highways),Environmental,Transport Related Expenditure,Direct Transport Costs,Repair Materials,19/03/2015,149676,574.66,Power Precision & Fabrication Ltd
Planning & Development,Development Control,Planning & Building,Supplies & Services,Services,Project Consultancy - Policy,30/03/2015,149481,576,Allen Planning Ltd
Environmental & Regulatory,Waste management,Environmental,Transport Related Expenditure,Direct Transport Costs,Repair Materials,30/03/2015,150815,576.83,Dennis Eagle Ltd
Environmental & Regulatory,Waste management,Environmental,Employees,Indirect Employee Expenses,Agency Staff - Waged Posts,12/03/2015,149691,581.8,Simple Recruitment Services Ltd
Central Services to the Public,Elections,Legal & Democratic,Supplies & Services,"Printing, Stationery & General Office Expenses",Postage Costs,12/03/2015,149838,581.88,Financial Data Management Plc
Planning & Development,Planning Policy,Plan Pol & Transport,Supplies & Services,"Printing, Stationery & General Office Expenses",Photocopying Costs,12/03/2015,148163,583.42,Ricoh Uk Ltd
Cultural & Related,Culture & Heritage,Community and Leisure ,Supplies & Services,Miscellaneous Expenses,Booking Of Acts,30/03/2015,150671,600,Avalon Management Group Ltd
Planning & Development,Economic Development,Estates and Economic Development ,Supplies & Services,Services,Training Courses,19/03/2015,150359,720,Atlantic Zieser Ltd
Cultural & Related,Open Spaces,Environmental,Supplies & Services,"Equipment, Furniture & Materials",Purchase Equip + Materials,12/03/2015,148347,25,Gb Sport & Leisure Uk Ltd
Cultural & Related,Open Spaces,Environmental,Supplies & Services,"Equipment, Furniture & Materials",Purchase Equip + Materials,30/03/2015,150900,600,Tudor Environmental
Environmental & Regulatory,Street Cleansing (not chargeable to Highways),Environmental,Supplies & Services,"Equipment, Furniture & Materials",Maintenance Of Tools,12/03/2015,148347,575,Gb Sport & Leisure Uk Ltd
Central Services to the Public,Local Tax Collection,Revenues,Supplies & Services,"Equipment, Furniture & Materials",Equipment Lease Rentals,26/03/2015,150805,60.45,Ricoh Uk Ltd
Central Services to the Public,Local Tax Collection,Revenues,Supplies & Services,"Equipment, Furniture & Materials",Equipment Lease Rentals,26/03/2015,150805,241.8,Ricoh Uk Ltd
Housing Services,Housing Benefits ,Revenues,Supplies & Services,"Equipment, Furniture & Materials",Equipment Lease Rentals,26/03/2015,150805,151.13,Ricoh Uk Ltd
Central Services to the Public,Local Tax Collection,Revenues,Supplies & Services,"Equipment, Furniture & Materials",Equipment Lease Rentals,26/03/2015,150805,151.13,Ricoh Uk Ltd
Planning & Development,Planning Policy,Plan Pol & Transport,Supplies & Services,"Printing, Stationery & General Office Expenses",Stationery,12/03/2015,149446,182.83,Supplies Team Ltd
"Highways, Roads & Transport",Highways and roads - maintenance,Plan Pol & Transport,Supplies & Services,"Printing, Stationery & General Office Expenses",Stationery,12/03/2015,149446,152.36,Supplies Team Ltd
"Highways, Roads & Transport",Parking Services,Plan Pol & Transport,Supplies & Services,"Printing, Stationery & General Office Expenses",Stationery,12/03/2015,149446,274.24,Supplies Team Ltd
Environmental & Regulatory,Waste management,Environmental,Transport Related Expenditure,Direct Transport Costs,Repair Materials,30/03/2015,150688,60.29,Dennis Eagle Ltd
Central Services to the Public,Management & Support Services,Environmental,Transport Related Expenditure,Direct Transport Costs,Repair Materials,30/03/2015,150688,550.59,Dennis Eagle Ltd
Central Services to the Public,Management & Support Services,Estates and Economic Development ,Premises related Expenditure,Repairs Alterations & Maintenance of Buildings,Building Maint - Estates,26/03/2015,150976,616.04,Btu Installation & Maintenance Ltd
"Highways, Roads & Transport",Highways and roads - maintenance,Plan Pol & Transport,Premises related Expenditure,Repairs Alterations & Maintenance of Buildings,Highways Repairs,30/03/2015,149720,624,Midland Signs (Leicester) Ltd
Planning & Development,Community Development,Community and Leisure ,Supplies & Services,Grants & Subscriptions,Grants,30/03/2015,151385,750,Kings Somborne Cricket Club
Planning & Development,Development Control,Planning & Building,Supplies & Services,Services,Project Consultancy - Policy,30/03/2015,150988,625,Professional Solutions Learning & Development
Cultural & Related,Culture & Heritage,Community and Leisure ,Supplies & Services,Miscellaneous Expenses,Booking Of Acts,19/03/2015,150155,750,Personal data - Data Protection Act 1998
Environmental & Regulatory,Street Cleansing (not chargeable to Highways),Environmental,Supplies & Services,Miscellaneous Expenses,Waste Collection,30/03/2015,151245,626.7,Raymond Brown Minerals & Recycling Ltd
"Highways, Roads & Transport",Parking Services,Plan Pol & Transport,Supplies & Services,Grants & Subscriptions,Subscriptions,05/03/2015,148346,631,British Parking Association
Central Services to the Public,Management & Support Services,Finance,Supplies & Services,"Printing, Stationery & General Office Expenses",Photocopying Costs,05/03/2015,148803,641.32,Ricoh Uk Ltd
Central Services to the Public,Management & Support Services,Estates and Economic Development ,Supplies & Services,"Equipment, Furniture & Materials",Purchase Materials (Job Cost),12/03/2015,149879,643.2,Edmundson Electrical Ltd
Cultural & Related,Culture & Heritage,Community and Leisure ,Supplies & Services,"Equipment, Furniture & Materials",Purchase Equip + Materials,30/03/2015,151341,650,Wake'S Decorating Ltd
Central Services to the Public,Local Tax Collection,Revenues,Supplies & Services,Communications & Computing,Software Maintenance,30/03/2015,151339,650,Northgate Information Solutions Uk Ltd
"Highways, Roads & Transport",Parking Services,Plan Pol & Transport,Supplies & Services,Communications & Computing,Software Maintenance,12/03/2015,149439,650,Imperial Civil Enforcement Solutions
Environmental & Regulatory,Street Cleansing (not chargeable to Highways),Environmental,Supplies & Services,"Equipment, Furniture & Materials",Purchase Equip + Materials,30/03/2015,151369,650,Groundsman Tools & Supplies
Cultural & Related,Culture & Heritage,Community and Leisure ,Supplies & Services,"Equipment, Furniture & Materials",Purchase Equip + Materials,19/03/2015,149864,661,Hawthorn Theatrical Ltd
Cultural & Related,Culture & Heritage,Community and Leisure ,Supplies & Services,Miscellaneous Expenses,Promotions / Special Events,19/03/2015,150123,665,Hampshire Media Limited
Cultural & Related,Culture & Heritage,Community and Leisure ,Supplies & Services,Catering,Non-Contract Catering,05/03/2015,148150,669.18,Carlsberg Uk Ltd
Central Services to the Public,Management & Support Services,Community and Leisure ,Supplies & Services,"Printing, Stationery & General Office Expenses",Photocopying Costs,30/03/2015,150701,671.75,Ricoh Uk Ltd
Cultural & Related,Open Spaces,Community and Leisure ,Supplies & Services,Miscellaneous Expenses,Promotions / Special Events,30/03/2015,150907,675,Keep Britain Tidy
Cultural & Related,Open Spaces,Environmental,Supplies & Services,Miscellaneous Expenses,Waste Collection,05/03/2015,146954,679.1,Raymond Brown Minerals & Recycling Ltd
Cultural & Related,Open Spaces,Community and Leisure ,Premises related Expenditure,Grounds Maintenance Costs,Gm - Additional Works,05/03/2015,148792,684,Heyland Marine
Planning & Development,Development Control,Planning & Building,Supplies & Services,"Equipment, Furniture & Materials",Maintenance Of Tools,26/03/2015,150380,695,The Microfilm Shop
Cultural & Related,Recreation & Sport,Community and Leisure ,Premises related Expenditure,Grounds Maintenance Costs,Gm - Additional Works,12/03/2015,147921,695,Elan Sales Ltd
Central Services to the Public,Management & Support Services,IT,Supplies & Services,Communications & Computing,Land Line Telephone Charges,19/03/2015,149668,699.85,Virgin Media Payments Ltd
Cultural & Related,Recreation & Sport,Community and Leisure ,Premises related Expenditure,Grounds Maintenance Costs,Gm - Additional Works,05/03/2015,148786,256.5,Greenflints
Cultural & Related,Open Spaces,Community and Leisure ,Premises related Expenditure,Grounds Maintenance Costs,Gm - Additional Works,05/03/2015,148786,85.5,Greenflints
Cultural & Related,Open Spaces,Community and Leisure ,Premises related Expenditure,Grounds Maintenance Costs,Gm - Additional Works,05/03/2015,148786,513,Greenflints
Planning & Development,Development Control,Planning & Building,Supplies & Services,Miscellaneous Expenses,Planning Appeal Costs,26/03/2015,149455,717,Allen Planning Ltd
Central Services to the Public,Management & Support Services,IT,Supplies & Services,Communications & Computing,Hardware Maintenance,19/03/2015,150256,740.8,Quadrant Security Group Ltd
Central Services to the Public,Management & Support Services,Estates and Economic Development ,Premises related Expenditure,Repairs Alterations & Maintenance of Buildings,Building Maint - Non Estates,26/03/2015,150983,741.47,Btu Installation & Maintenance Ltd
Central Services to the Public,Local Tax Collection,Revenues,Supplies & Services,"Printing, Stationery & General Office Expenses",Postage Costs,26/03/2015,150654,78.6,Royal Mail
Central Services to the Public,Local Tax Collection,Revenues,Supplies & Services,"Printing, Stationery & General Office Expenses",Postage Costs,26/03/2015,150654,207,Royal Mail
Housing Services,Housing Benefits ,Revenues,Supplies & Services,"Printing, Stationery & General Office Expenses",Postage Costs,26/03/2015,150654,229.85,Royal Mail
Central Services to the Public,Local Tax Collection,Revenues,Supplies & Services,"Printing, Stationery & General Office Expenses",Postage Costs,26/03/2015,150654,229.84,Royal Mail
Cultural & Related,Culture & Heritage,Community and Leisure ,Supplies & Services,Miscellaneous Expenses,Booking Of Acts,30/03/2015,151367,900,Personal data - Data Protection Act 1998
Central Services to the Public,Management & Support Services,Estates and Economic Development ,Supplies & Services,"Equipment, Furniture & Materials",Purchase Tools,12/03/2015,149002,755,Kgm Ltd
Central Services to the Public,Management & Support Services,Estates and Economic Development ,Supplies & Services,"Equipment, Furniture & Materials",Purchase Materials (Job Cost),05/03/2015,148766,872.56,Wessex Petroleum Limited
Cultural & Related,Open Spaces,Environmental,Transport Related Expenditure,Direct Transport Costs,Repair Materials,26/03/2015,150247,764.51,T H White Ltd
Environmental & Regulatory,"Cemetery, Cremation and Mortuary Services",Community and Leisure ,Supplies & Services,Miscellaneous Expenses,National Assist Act Burials,25/03/2015,150820,920,Dunnings Funeral Services
Central Services to the Public,Local Tax Collection,Revenues,Supplies & Services,"Printing, Stationery & General Office Expenses",External Printing,30/03/2015,151327,767.8,Computastat Group Ltd
Planning & Development,Development Control,Planning & Building,Supplies & Services,Miscellaneous Expenses,Planning Appeal Costs,26/03/2015,150904,944.25,Romsey Town Council
Housing Services,"Housing strategy, advice and enabling",Housing and Environmental Health ,Employees,Indirect Employee Expenses,Temporary Staff,30/03/2015,151227,790,Abatec Ltd
Cultural & Related,Open Spaces,Community and Leisure ,Supplies & Services,Grants & Subscriptions,Grants,30/03/2015,150941,950,Hampshire Dormouse Group
Planning & Development,Development Control,Planning & Building,Supplies & Services,Services,Project Consultancy - Policy,12/03/2015,149423,795,Reading Agricultural Consultants Ltd
Planning & Development,Development Control,Planning & Building,Supplies & Services,Services,Project Consultancy - Policy,30/03/2015,151255,795,Reading Agricultural Consultants Ltd
Central Services to the Public,Emergency Planning,Corporate & Democratic,Supplies & Services,Communications & Computing,Land Line Telephone Charges,30/03/2015,150923,795,Ast Connections Ltd
"Highways, Roads & Transport",Parking Services,Plan Pol & Transport,Supplies & Services,"Equipment, Furniture & Materials",Purchase Equip + Materials,05/03/2015,146366,798.15,Cale Briparc Ltd
Central Services to the Public,Management & Support Services,Estates and Economic Development ,Premises related Expenditure,Repairs Alterations & Maintenance of Buildings,Planned Maintenance - Non Est,26/03/2015,150629,200,Tls Fire & Security Llp
Central Services to the Public,Management & Support Services,Estates and Economic Development ,Premises related Expenditure,Repairs Alterations & Maintenance of Buildings,Planned Maintenance - Non Est,26/03/2015,150629,200,Tls Fire & Security Llp
Central Services to the Public,Management & Support Services,Estates and Economic Development ,Premises related Expenditure,Repairs Alterations & Maintenance of Buildings,Planned Maintenance - Non Est,26/03/2015,150629,200,Tls Fire & Security Llp
Central Services to the Public,Management & Support Services,Estates and Economic Development ,Premises related Expenditure,Repairs Alterations & Maintenance of Buildings,Planned Maintenance - Non Est,26/03/2015,150629,200,Tls Fire & Security Llp
Central Services to the Public,Management & Support Services,Plan Pol & Transport,Premises related Expenditure,Repairs Alterations & Maintenance of Buildings,General Repairs,05/03/2015,148981,807.6,Volker Highways Ltd
Central Services to the Public,Management & Support Services,Estates and Economic Development ,Supplies & Services,Services,Training Courses,19/03/2015,150132,975,University Of Portsmouth
Central Services to the Public,Local Tax Collection,Revenues,Supplies & Services,"Equipment, Furniture & Materials",Purchase Equip + Materials,26/03/2015,150837,822.75,Neopost Ltd
Central Services to the Public,Management & Support Services,Estates and Economic Development ,Supplies & Services,"Equipment, Furniture & Materials",Equipment Hire,12/03/2015,149431,825,Crown Water & Coffee
Central Services to the Public,Management & Support Services,Estates and Economic Development ,Premises related Expenditure,Cleaning and domestic supplies,Window Cleaning,26/03/2015,150699,827,Allclean Windows Limited
Central Services to the Public,Management & Support Services,Community and Leisure ,Supplies & Services,Grants & Subscriptions,Grants,30/03/2015,151208,1000,Popinjay Productions
Environmental & Regulatory,Waste management,Environmental,Transport Related Expenditure,Direct Transport Costs,Repair Materials,30/03/2015,150684,834.82,Dennis Eagle Ltd
Environmental & Regulatory,Regulatory Services,Housing and Environmental Health ,Supplies & Services,Miscellaneous Expenses,Kennel fees,26/03/2015,150606,840,Anton Vets Ltd
Planning & Development,Development Control,Planning & Building,Supplies & Services,"Equipment, Furniture & Materials",Maintenance Of Tools,05/03/2015,149011,843.96,Pitney Bowes Limited
Environmental & Regulatory,Waste management,Environmental,Employees,Indirect Employee Expenses,Agency Staff - Waged Posts,30/03/2015,151241,849,Abacus Employment Services Ltd
Central Services to the Public,Management & Support Services,Estates and Economic Development ,Supplies & Services,Communications & Computing,Telephone Tracking System,19/03/2015,149719,60,Ctrack Uk Limited
Environmental & Regulatory,Regulatory Services,Estates and Economic Development ,Supplies & Services,Communications & Computing,Telephone Tracking System,19/03/2015,149719,20,Ctrack Uk Limited
Cultural & Related,Open Spaces,Environmental,Supplies & Services,Communications & Computing,Telephone Tracking System,19/03/2015,149719,280,Ctrack Uk Limited
Environmental & Regulatory,Street Cleansing (not chargeable to Highways),Environmental,Supplies & Services,Communications & Computing,Telephone Tracking System,19/03/2015,149719,230,Ctrack Uk Limited
Environmental & Regulatory,Street Cleansing (not chargeable to Highways),Environmental,Supplies & Services,Services,Training Courses,05/03/2015,148352,850,Johnston Sweepers Ltd
Environmental & Regulatory,Waste management,Environmental,Supplies & Services,Communications & Computing,Telephone Tracking System,19/03/2015,149719,210,Ctrack Uk Limited
Environmental & Regulatory,Waste management,Environmental,Supplies & Services,Communications & Computing,Telephone Tracking System,19/03/2015,149719,20,Ctrack Uk Limited
Central Services to the Public,Management & Support Services,Environmental,Supplies & Services,Communications & Computing,Telephone Tracking System,19/03/2015,149719,30,Ctrack Uk Limited
Environmental & Regulatory,Waste management,Environmental,Employees,Indirect Employee Expenses,Agency Staff - Waged Posts,05/03/2015,148485,874.13,Abacus Employment Services Ltd
Central Services to the Public,Management & Support Services,IT,Supplies & Services,Services,Training Courses,26/03/2015,150357,879,The Knowledge Academy Ltd
Cultural & Related,Open Spaces,Environmental,Supplies & Services,Communications & Computing,Mobile Telephone Charges,12/03/2015,149716,150.73,Vodafone Limited
Environmental & Regulatory,Street Cleansing (not chargeable to Highways),Environmental,Supplies & Services,Communications & Computing,Mobile Telephone Charges,12/03/2015,149716,387.27,Vodafone Limited
Environmental & Regulatory,Waste management,Environmental,Supplies & Services,Communications & Computing,Mobile Telephone Charges,12/03/2015,149716,91.57,Vodafone Limited
Central Services to the Public,Management & Support Services,Environmental,Supplies & Services,Communications & Computing,Mobile Telephone Charges,12/03/2015,149716,27.7,Vodafone Limited
Central Services to the Public,Management & Support Services,Environmental,Supplies & Services,Communications & Computing,Mobile Telephone Charges,12/03/2015,149716,242.41,Vodafone Limited
Planning & Development,Development Control,Planning & Building,Supplies & Services,"Printing, Stationery & General Office Expenses",Postage Costs,05/03/2015,148558,302.43,Royal Mail
Planning & Development,Planning Policy,Plan Pol & Transport,Supplies & Services,"Printing, Stationery & General Office Expenses",Postage Costs,05/03/2015,148558,183.99,Royal Mail
Central Services,Corporate & Democratic Core,Corporate & Democratic,Supplies & Services,"Printing, Stationery & General Office Expenses",Postage Costs,05/03/2015,148558,434.77,Royal Mail
Central Services to the Public,Management & Support Services,Finance,Supplies & Services,Communications & Computing,Software Maintenance,12/03/2015,148813,937.89,Advanced Business Solutions
Cultural & Related,Regulatory Services,Estates and Economic Development ,Premises related Expenditure,Energy Costs,Gas,30/03/2015,150596,938.83,Total Gas & Power Ltd
Central Services to the Public,Management & Support Services,IT,Supplies & Services,Miscellaneous Expenses,Miscellaneous Capital Expenses,05/03/2015,148122,945,Ics Solutions Ltd
Central Services to the Public,Management & Support Services,Estates and Economic Development ,Premises related Expenditure,Repairs Alterations & Maintenance of Buildings,Building Maint - Non Estates,26/03/2015,150985,945.22,Btu Installation & Maintenance Ltd
Cultural & Related,Culture & Heritage,Community and Leisure ,Supplies & Services,Miscellaneous Expenses,Booking Of Acts,19/03/2015,149488,936,Sell A Door Theatre Company Ltd
Cultural & Related,Culture & Heritage,Community and Leisure ,Supplies & Services,Miscellaneous Expenses,Promotions / Special Events,05/03/2015,148772,1165,Tinklertastic Ltd
Environmental & Regulatory,Waste management,Environmental,Supplies & Services,"Equipment, Furniture & Materials",Purchase Equip + Materials,30/03/2015,151375,977.64,Cromwell Polythene Ltd
Central Services to the Public,Management & Support Services,Environmental,Transport Related Expenditure,Direct Transport Costs,Repair Materials,12/03/2015,149119,984.64,Dennis Eagle Ltd
Cultural & Related,Culture & Heritage,Community and Leisure ,Supplies & Services,"Equipment, Furniture & Materials",Purchase Equip + Materials,19/03/2015,149852,990,Peter Cox (Catering Equipment) Ltd
Central Services,Corporate & Democratic Core,Corporate & Democratic,Supplies & Services,Miscellaneous Expenses,Design Fees,19/03/2015,150260,990,Cammegh Davies Fleming
Central Services to the Public,Management & Support Services,Finance,Supplies & Services,"Printing, Stationery & General Office Expenses",Postage Costs,12/03/2015,149862,998.05,Whistl South West Ltd
Central Services,Corporate & Democratic Core,Corporate & Democratic,Supplies & Services,Services,Training Courses,26/03/2015,150635,1000,Learning Pool Limited
Environmental & Regulatory,Regulatory Services,Housing and Environmental Health ,Supplies & Services,Grants and subscriptions,Capital Grants,26/03/2015,150992,1207.8,Hampshire Mobility Services
Environmental & Regulatory,Regulatory Services,Housing and Environmental Health ,Supplies & Services,Grants and subscriptions,Capital Grants,19/03/2015,150373,1209.63,Plumbing & Carpentry
"Highways, Roads & Transport",Parking Services,Plan Pol & Transport,Premises related Expenditure,Energy Costs,Electricity,30/03/2015,150383,1021.94,Southern Electric
Environmental & Regulatory,Street Cleansing (not chargeable to Highways),Environmental,Supplies & Services,"Equipment, Furniture & Materials",Purchase Equip + Materials,30/03/2015,151246,1022,The Enigma Encoding Co Ltd
Planning & Development,Economic Development,Estates and Economic Development ,Supplies & Services,Services,Training Courses,05/03/2015,148491,1234.5,Active Staff Ltd
Environmental & Regulatory,Street Cleansing (not chargeable to Highways),Environmental,Supplies & Services,Services,Training Courses,26/03/2015,150385,1040,The Play Inspection Company Ltd
Cultural & Related,Recreation & Sport,Community and Leisure ,Premises related Expenditure,Grounds Maintenance Costs,Gm - Additional Works,05/03/2015,148793,1054,Burntwood Nurseries
"Highways, Roads & Transport",Highways and roads - maintenance,Plan Pol & Transport,Supplies & Services,"Equipment, Furniture & Materials",Purchase Equip + Materials,05/03/2015,148788,1061,Signway Supplies (Datchet Ltd)
Central Services to the Public,Management & Support Services,Finance,Supplies & Services,"Printing, Stationery & General Office Expenses",Postage Costs,19/03/2015,149834,1062.29,Whistl South West Ltd
Central Services,Corporate & Democratic Core,Corporate & Democratic,Supplies & Services,Communications & Computing,Software Maintenance,12/03/2015,149010,1073.6,Advanced Business Solutions
Environmental & Regulatory,Street Cleansing (not chargeable to Highways),Environmental,Supplies & Services,"Equipment, Furniture & Materials",Purchase Equip + Materials,19/03/2015,150135,1078,Earth Anchors Ltd
"Highways, Roads & Transport",Highways and roads - maintenance,Plan Pol & Transport,Supplies & Services,"Equipment, Furniture & Materials",Purchase Equip + Materials,30/03/2015,151236,1083.58,Bellstan Ltd
"Highways, Roads & Transport",Highways and roads - maintenance,Plan Pol & Transport,Supplies & Services,"Equipment, Furniture & Materials",Purchase Equip + Materials,30/03/2015,151314,1100.3,Bellstan Ltd
Environmental & Regulatory,Street Cleansing (not chargeable to Highways),Environmental,Supplies & Services,"Equipment, Furniture & Materials",Purchase Tools,30/03/2015,151329,1119.88,M D Services
Environmental & Regulatory,Waste management,Environmental,Supplies & Services,Miscellaneous Expenses,Vehicle insurance claims,26/03/2015,150741,1122.36,Terberg Matec Uk Limited
Central Services to the Public,Management & Support Services,IT,Supplies & Services,"Equipment, Furniture & Materials",Equipment Hire,26/03/2015,150812,551.25,Xerox (Uk) Ltd
Central Services to the Public,Management & Support Services,IT,Supplies & Services,"Equipment, Furniture & Materials",Purchase Equip + Materials,26/03/2015,150812,583.98,Xerox (Uk) Ltd
Planning & Development,Development Control,Planning & Building,Supplies & Services,"Printing, Stationery & General Office Expenses",Photocopying Costs,26/03/2015,150615,1150.69,Ricoh Uk Ltd
"Highways, Roads & Transport",Public Transport,Plan Pol & Transport,Third Party Payments,Transport Operators in Respect of Concessionary Fares,Voluntary Orgs Reimbursement,12/03/2015,149449,1387,Andover Neighbourcare
Planning & Development,Planning Policy,Plan Pol & Transport,Supplies & Services,Services,Project Consultancy - Policy,30/03/2015,151365,1165,Bnp Paribas Real Estate & Property Mgt Uk Ltd
Environmental & Regulatory,Regulatory Services,Housing and Environmental Health ,Supplies & Services,Grants and subscriptions,Capital Grants,26/03/2015,150997,1432,Epw Construction
Central Services to the Public,Management & Support Services,IT,Supplies & Services,Communications & Computing,Computer Software,05/03/2015,148356,1200,Web Labs Ltd
Cultural & Related,Recreation & Sport,Community and Leisure ,Premises related Expenditure,Repairs Alterations & Maintenance of Buildings,Building Maint - Non Estates,05/03/2015,149148,1200,Sa Pool Systems Ltd
Central Services to the Public,Management & Support Services,Estates and Economic Development ,Third Party Payments,Other Establishments,Contract Catering,19/03/2015,150254,1209.3,Edwards And Ward Ltd
External Trading Accounts,Industrial Estates,Estates and Economic Development ,Premises related Expenditure,Repairs Alterations & Maintenance of Buildings,Building Maint - Estates,12/03/2015,149149,1210,Purbeck Civil Engineering Limited
Central Services to the Public,Management & Support Services,Plan Pol & Transport,Supplies & Services,"Equipment, Furniture & Materials",Purchase Equip + Materials,30/03/2015,150835,1225,Rocon Contractors Ltd
Planning & Development,Development Control,Planning & Building,Supplies & Services,"Printing, Stationery & General Office Expenses",Stationery,12/03/2015,149118,1056.18,Supplies Team Ltd
Planning & Development,Development Control,Planning & Building,Supplies & Services,"Printing, Stationery & General Office Expenses",Print Consumables,12/03/2015,149118,180.31,Supplies Team Ltd
Central Services to the Public,Management & Support Services,Environmental,Supplies & Services,Communications & Computing,Software Maintenance,30/03/2015,150932,1242.54,Civica Uk Ltd
Environmental & Regulatory,Regulatory Services,Housing and Environmental Health ,Supplies & Services,Grants and subscriptions,Capital Grants,26/03/2015,150995,1497,Epw Construction
Central Services to the Public,Management & Support Services,Finance,Supplies & Services,"Printing, Stationery & General Office Expenses",Postage Costs,26/03/2015,150653,1252.76,Whistl South West Ltd
Environmental & Regulatory,Community Development,Community and Leisure ,Supplies & Services,Miscellaneous Expenses,Promotions / Special Events,26/03/2015,139027,1269,Hampshire County Council
Planning & Development,Community Development,Estates and Economic Development ,Transport Related Expenditure,Contract Hire and Operating Leases,Vehicles-Hired\Leased,05/03/2015,148184,1530,Clegg & Brooking Ltd
Central Services to the Public,Management & Support Services,IT,Supplies & Services,Services,Project Consultancy - Systems,30/03/2015,150137,1275,Blue Chip
Environmental & Regulatory,Waste management,Environmental,Employees,Indirect Employee Expenses,Agency Staff - Waged Posts,19/03/2015,150264,1278.3,365 Supply Ltd
"Highways, Roads & Transport",Public Transport,Plan Pol & Transport,Third Party Payments,Transport Operators in Respect of Concessionary Fares,Voluntary Orgs Reimbursement,05/03/2015,148481,1536,Andover Neighbourcare
Planning & Development,Planning Policy,Plan Pol & Transport,Supplies & Services,Grants & Subscriptions,Grants,12/03/2015,148782,1538.84,Hampshire County Council
Planning & Development,Planning Policy,Plan Pol & Transport,Supplies & Services,Grants & Subscriptions,Grants,26/03/2015,150376,1538.84,Hampshire County Council
Central Services to the Public,Management & Support Services,IT,Supplies & Services,Communications & Computing,Software Maintenance,30/03/2015,151240,1304.25,Oracle Corporation Uk
Central Services to the Public,Management & Support Services,Finance,Supplies & Services,"Printing, Stationery & General Office Expenses",Postage Costs,30/03/2015,150914,1309.82,Whistl South West Ltd
Cultural & Related,Culture & Heritage,Community and Leisure ,Supplies & Services,Miscellaneous Expenses,Booking Of Acts,19/03/2015,149885,1322.02,Blackeyed Theatre Company
Planning & Development,Development Control,Planning & Building,Supplies & Services,"Printing, Stationery & General Office Expenses",Written Media,26/03/2015,150361,1325,Haymarket Publishing Services Ltd
Environmental & Regulatory,Regulatory Services,Housing and Environmental Health ,Supplies & Services,Grants and subscriptions,Capital Grants,05/03/2015,149181,1607,Liftability Ltd
Planning & Development,Community Development,Community and Leisure ,Supplies & Services,Grants & Subscriptions,Grants,05/03/2015,149135,1339.28,Pearl & Coutts Ltd
"Highways, Roads & Transport",Highways and roads - maintenance,Plan Pol & Transport,Premises related Expenditure,Repairs Alterations & Maintenance of Buildings,Highways Repairs,12/03/2015,146359,1341.5,Midland Signs (Leicester) Ltd
Cultural & Related,Recreation & Sport,Community and Leisure ,Premises related Expenditure,Grounds Maintenance Costs,Gm - Additional Works,12/03/2015,149156,1347,Streetmaster (South Wales) Ltd
Environmental & Regulatory,Regulatory Services,Housing and Environmental Health ,Third Party Payments,Other Establishments,Private Contractors,12/03/2015,149841,1621,Cedar Pest
Cultural & Related,Open Spaces,Environmental,Transport Related Expenditure,Direct Transport Costs,Repair Materials,26/03/2015,150740,1355.51,T H White Ltd
External Trading Accounts,Industrial Estates,Estates and Economic Development ,Premises related Expenditure,Repairs Alterations & Maintenance of Buildings,Building Maint - Non Estates,26/03/2015,150640,1359.01,Basingstoke Fire Protection Ltd
Environmental & Regulatory,Waste management,Environmental,Employees,Indirect Employee Expenses,Agency Staff - Waged Posts,30/03/2015,151242,1382.69,365 Supply Ltd
Central Services to the Public,Local Tax Collection,Revenues,Supplies & Services,Services,Professional Fees,30/03/2015,150913,85,Ross & Roberts
External Trading Accounts,Industrial Estates,Estates and Economic Development ,Premises related Expenditure,Water Services,Water And Sewerage Charges,26/03/2015,150623,1688.84,Southern Water
Central Services to the Public,Management & Support Services,Estates and Economic Development ,Premises related Expenditure,Repairs Alterations & Maintenance of Buildings,Building Maint - Non Estates,12/03/2015,149442,1410,Btu Installation & Maintenance Ltd
Cultural & Related,Culture & Heritage,Community and Leisure ,Supplies & Services,"Printing, Stationery & General Office Expenses",Licences / Affiliation Fees,25/03/2015,150150,1415.79,Prs For Music
Cultural & Related,Recreation & Sport,Community and Leisure ,Premises related Expenditure,Repairs Alterations & Maintenance of Buildings,Estates premises costs - AMP,05/03/2015,148156,1426,Broxap Limited (Stadia Sports )
Environmental & Regulatory,Regulatory Services,Housing and Environmental Health ,Supplies & Services,Grants and subscriptions,Capital Grants,26/03/2015,150991,1715.94,Hampshire Mobility Services
Environmental & Regulatory,Waste management,Environmental,Employees,Indirect Employee Expenses,Agency Staff - Waged Posts,05/03/2015,148486,1499.88,365 Supply Ltd
Central Services to the Public,Management & Support Services,IT,Supplies & Services,Services,Project Consultancy - Systems,05/03/2015,148153,1500,Randomstorm
Cultural & Related,Recreation & Sport,Community and Leisure ,Supplies & Services,Services,Coaches Fees,30/03/2015,151252,600,Rubicon Industries Ltd
Cultural & Related,Recreation & Sport,Community and Leisure ,Supplies & Services,Services,Coaches Fees,30/03/2015,151252,700,Rubicon Industries Ltd
Cultural & Related,Recreation & Sport,Community and Leisure ,Supplies & Services,Services,Coaches Fees,30/03/2015,151252,200,Rubicon Industries Ltd
Central Services to the Public,Management & Support Services,Estates and Economic Development ,Premises related Expenditure,Energy Costs,Gas,30/03/2015,150597,1508.83,Total Gas & Power Ltd
Central Services to the Public,Management & Support Services,IT,Supplies & Services,Communications & Computing,Computer Hardware,26/03/2015,150972,1528.42,Dell Computer Corporation Ltd
Central Services to the Public,Local Tax Collection,Revenues,Supplies & Services,Communications & Computing,Software Maintenance,26/03/2015,150382,382.75,Bottomline Technologies Ltd
Housing Services,Housing Benefits ,Revenues,Supplies & Services,Communications & Computing,Software Maintenance,26/03/2015,150382,382.75,Bottomline Technologies Ltd
Central Services to the Public,Management & Support Services,Finance,Supplies & Services,Communications & Computing,Software Maintenance,26/03/2015,150382,765.5,Bottomline Technologies Ltd
Central Services to the Public,Management & Support Services,Estates and Economic Development ,Third Party Payments,Other Establishments,Private Contractors,26/03/2015,150625,1540,Waterside Blinds
Environmental & Regulatory,Regulatory Services,Estates and Economic Development ,Premises related Expenditure,Water Services,Water And Sewerage Charges,12/03/2015,149871,1849.34,Southern Water
External Trading Accounts,Industrial Estates,Estates and Economic Development ,Premises related Expenditure,Repairs Alterations & Maintenance of Buildings,Planned Maintenance - Non Est,26/03/2015,150676,1542.03,Rentokil Initial Uk Ltd
Environmental & Regulatory,Regulatory Services,Housing and Environmental Health ,Supplies & Services,Grants and subscriptions,Capital Grants,12/03/2015,149845,1863,Prism Medical Uk
Central Services to the Public,Management & Support Services,Estates and Economic Development ,Third Party Payments,Other Establishments,Private Contractors,26/03/2015,150977,1597.67,Btu Installation & Maintenance Ltd
Environmental & Regulatory,Waste management,Environmental,Employees,Indirect Employee Expenses,Agency Staff - Waged Posts,19/03/2015,150262,1617,Abacus Employment Services Ltd
Cultural & Related,Open Spaces,Community and Leisure ,Premises related Expenditure,Grounds Maintenance Costs,Gm - Additional Works,30/03/2015,151402,1619,Personal data - Data Protection Act 1998
Environmental & Regulatory,Regulatory Services,Housing and Environmental Health ,Supplies & Services,Grants and subscriptions,Capital Grants,26/03/2015,150956,1945,Pmh Gas & Electrical Ltd
Central Services to the Public,Management & Support Services,Community and Leisure ,Supplies & Services,Miscellaneous Expenses,Promotions / Special Events,11/03/2015,149464,2000,Friends Of Andover War Memorial Hospital
Cultural & Related,Culture & Heritage,Community and Leisure ,Supplies & Services,Services,Project Consultancy - Policy,12/03/2015,148984,2000,Mark Drury Ltd T/A Spud Group
Planning & Development,Community Development,Community and Leisure ,Supplies & Services,Grants & Subscriptions,Grants,26/03/2015,150947,2000,Alamein Community Association
Central Services to the Public,Management & Support Services,Estates and Economic Development ,Third Party Payments,Other Establishments,Contract Catering,19/03/2015,150253,1667.46,Edwards And Ward Ltd
"Highways, Roads & Transport",Highways and roads - maintenance,Plan Pol & Transport,Premises related Expenditure,Repairs Alterations & Maintenance of Buildings,Highways Repairs,30/03/2015,148159,1672,Midland Signs (Leicester) Ltd
Environmental & Regulatory,Waste management,Environmental,Employees,Indirect Employee Expenses,Agency Staff - Waged Posts,05/03/2015,148992,1679.82,365 Supply Ltd
Central Services to the Public,Management & Support Services,Estates and Economic Development ,Premises related Expenditure,Repairs Alterations & Maintenance of Buildings,Planned Maintenance - Non Est,26/03/2015,150641,1685.05,Basingstoke Fire Protection Ltd
Cultural & Related,Recreation & Sport,Community and Leisure ,Supplies & Services,"Equipment, Furniture & Materials",Purchase Equip + Materials,12/03/2015,149140,180.78,Gripdeck Uk Llp
Cultural & Related,Open Spaces,Community and Leisure ,Premises related Expenditure,Grounds Maintenance Costs,Gm - Additional Works,12/03/2015,149140,1509.49,Gripdeck Uk Llp
Planning & Development,Community Development,Community and Leisure ,Supplies & Services,Grants & Subscriptions,Grants,19/03/2015,150366,2034,Nursling & Rownhams P C
Central Services to the Public,Elections,Legal & Democratic,Supplies & Services,"Equipment, Furniture & Materials",Purchase Equip + Materials,26/03/2015,150622,1700,Signet Signs Ltd
Central Services to the Public,Local Tax Collection,Revenues,Supplies & Services,Grants & Subscriptions,Subscriptions,19/03/2015,150388,1705,Cipfa Business Limited
Environmental & Regulatory,Regulatory Services,Housing and Environmental Health ,Third Party Payments,Other Establishments,Private Contractors,05/03/2015,148142,2076,Cedar Pest
Cultural & Related,Culture & Heritage,Community and Leisure ,Supplies & Services,Miscellaneous Expenses,Booking Of Acts,26/03/2015,150813,1733.67,Newbury Productions (Uk) Ltd
"Highways, Roads & Transport",Highways and roads - maintenance,Plan Pol & Transport,Premises related Expenditure,Repairs Alterations & Maintenance of Buildings,Highways Repairs,30/03/2015,148160,1745,Midland Signs (Leicester) Ltd
Central Services to the Public,Housing Benefits ,Revenues,Supplies & Services,Grants & Subscriptions,Subscriptions,26/03/2015,150386,2099,Tameside Mbc
Environmental & Regulatory,Regulatory Services,Housing and Environmental Health ,Supplies & Services,Grants and subscriptions,Capital Grants,26/03/2015,150994,2108,Epw Construction
Central Services to the Public,Management & Support Services,IT,Supplies & Services,Communications & Computing,Computer Hardware,12/03/2015,149154,1848.46,Dell Computer Corporation Ltd
Cultural & Related,Open Spaces,Community and Leisure ,Premises related Expenditure,Grounds Maintenance Costs,Non Contract Tree Works,30/03/2015,150894,1858,Gristwood & Toms Ltd
Cultural & Related,Culture & Heritage,Community and Leisure ,Supplies & Services,Miscellaneous Expenses,Booking Of Acts,05/03/2015,148812,1884.66,Rbm
Cultural & Related,Culture & Heritage,Community and Leisure ,Supplies & Services,Miscellaneous Expenses,Booking Of Acts,30/03/2015,151211,1895.34,Artistes International Management
Central Services to the Public,Management & Support Services,Estates and Economic Development ,Supplies & Services,Services,Professional Fees,19/03/2015,148521,1920,Studio Four Architects Ltd
Planning & Development,Development Control,Planning & Building,Supplies & Services,Services,Training Courses,26/03/2015,150901,1950,Trevor Roberts Associates
Planning & Development,Development Control,Planning & Building,Supplies & Services,Grants & Subscriptions,Subscriptions,19/03/2015,150125,1973.45,Labc Training
Housing Services,"Housing strategy, advice and enabling",Housing and Environmental Health ,Employees,Indirect Employee Expenses,Temporary Staff,12/03/2015,149494,1975,Abatec Ltd
Central Services to the Public,Management & Support Services,Estates and Economic Development ,Third Party Payments,Other Establishments,Private Contractors,26/03/2015,150974,1998,Doorgear Limited
Central Services to the Public,Local Tax Collection,Revenues,Supplies & Services,Communications & Computing,Computer Software,30/03/2015,151340,2000,Northgate Information Solutions Uk Ltd
Environmental & Regulatory,Waste management,Environmental,Supplies & Services,"Printing, Stationery & General Office Expenses",External Printing,19/03/2015,149701,1750,Vernham Labels Ltd
Environmental & Regulatory,Waste management,Environmental,Supplies & Services,"Printing, Stationery & General Office Expenses",External Printing,19/03/2015,149701,250,Vernham Labels Ltd
Planning & Development,Planning Policy,Plan Pol & Transport,Supplies & Services,Services,Project Consultancy - Policy,26/03/2015,150810,2000,Hampshire County Council
Planning & Development,Development Control,Planning & Building,Supplies & Services,Communications & Computing,Computer Hardware,05/03/2015,148165,2025,It Bus Ltd
Central Services,Corporate & Democratic Core,Corporate & Democratic,Supplies & Services,Communications & Computing,Computer Software,19/03/2015,148810,2078.62,Advanced Business Solutions
Cultural & Related,Recreation & Sport,Community and Leisure ,Supplies & Services,Grants and subscriptions,Capital Grants,19/03/2015,150363,2500,Romsey Town Council
Environmental & Regulatory,Waste management,Environmental,Supplies & Services,"Equipment, Furniture & Materials",Purchase Equip + Materials,05/03/2015,148795,2090,Ssi Schaefer Ltd
Environmental & Regulatory,Waste management,Environmental,Employees,Indirect Employee Expenses,Agency Staff - Waged Posts,12/03/2015,149692,2147.66,365 Supply Ltd
Planning & Development,Development Control,Planning & Building,Supplies & Services,Miscellaneous Expenses,Planning Appeal Costs,26/03/2015,149886,2187.5,Appleton Group Bristol
Cultural & Related,Culture & Heritage,Community and Leisure ,Supplies & Services,"Printing, Stationery & General Office Expenses",Postage Costs,26/03/2015,150731,2208.23,Document Despatch Ltd
Environmental & Regulatory,Regulatory Services,Housing and Environmental Health ,Supplies & Services,Grants and subscriptions,Capital Grants,26/03/2015,151000,2684,Epw Construction
Central Services,Corporate & Democratic Core,Corporate & Democratic,Supplies & Services,"Printing, Stationery & General Office Expenses",External Printing,19/03/2015,150139,2362,Mortons Print
Central Services,Corporate & Democratic Core,Corporate & Democratic,Supplies & Services,Miscellaneous Expenses,Advertising,19/03/2015,150139,375,Mortons Print
Planning & Development,Community Development,Community and Leisure ,Supplies & Services,Grants & Subscriptions,Grants,26/03/2015,150945,2800,Nursling & Rownhams P C
Environmental & Regulatory,Regulatory Services,Housing and Environmental Health ,Supplies & Services,Grants and subscriptions,Capital Grants,26/03/2015,150949,2803.41,S & J Building Services (Uk) Ltd
Cultural & Related,Culture & Heritage,Community and Leisure ,Premises related Expenditure,Energy Costs,Electricity,12/03/2015,149506,1102.28,Sparsholt College Hampshire
Cultural & Related,Culture & Heritage,Community and Leisure ,Premises related Expenditure,Energy Costs,Gas,12/03/2015,149506,1050.96,Sparsholt College Hampshire
Cultural & Related,Culture & Heritage,Community and Leisure ,Premises related Expenditure,Water Services,Water And Sewerage Charges,12/03/2015,149506,254.34,Sparsholt College Hampshire
Central Services to the Public,Management & Support Services,Finance,Supplies & Services,"Printing, Stationery & General Office Expenses",Postage Costs,26/03/2015,150348,2392.67,Whistl South West Ltd
Environmental & Regulatory,Waste management,Environmental,Employees,Indirect Employee Expenses,Agency Staff - Waged Posts,05/03/2015,148986,2403.94,Abacus Employment Services Ltd
Central Services to the Public,Management & Support Services,Environmental,Transport Related Expenditure,Direct Transport Costs,Diesel,30/03/2015,150665,2404.1,Wessex Petroleum Limited
Central Services to the Public,Management & Support Services,Finance,Supplies & Services,"Printing, Stationery & General Office Expenses",Postage Costs,05/03/2015,148164,2409.64,Whistl South West Ltd
Cultural & Related,Culture & Heritage,Community and Leisure ,Premises related Expenditure,Energy Costs,Electricity,05/03/2015,149014,1112.75,Sparsholt College Hampshire
Cultural & Related,Culture & Heritage,Community and Leisure ,Premises related Expenditure,Energy Costs,Gas,05/03/2015,149014,1088.98,Sparsholt College Hampshire
Cultural & Related,Culture & Heritage,Community and Leisure ,Premises related Expenditure,Water Services,Water And Sewerage Charges,05/03/2015,149014,254.34,Sparsholt College Hampshire
Cultural & Related,Culture & Heritage,Community and Leisure ,Supplies & Services,Miscellaneous Expenses,Booking Of Acts,12/03/2015,149458,2418.66,Lee James Associates Limited
Central Services to the Public,Management & Support Services,Environmental,Transport Related Expenditure,Direct Transport Costs,Environmental transport costs AMP,30/03/2015,151352,2420,R Hunt (Agricultural Engineers) Ltd
Cultural & Related,Culture & Heritage,Community and Leisure ,Supplies & Services,Miscellaneous Expenses,Booking Of Acts,26/03/2015,150707,2432,Off The Kerb Productions
Cultural & Related,Open Spaces,Environmental,Supplies & Services,"Equipment, Furniture & Materials",Purchase Equip + Materials,05/03/2015,146951,2440,Imperial Polythene Products Ltd
Planning & Development,Economic Development,Estates and Economic Development ,Supplies & Services,Grants & Subscriptions,Grants,05/03/2015,149155,2443.8,Heartflood Ltd
Planning & Development,Economic Development,Estates and Economic Development ,Supplies & Services,Grants & Subscriptions,Grants,12/03/2015,149651,2443.8,Heartflood Ltd
Cultural & Related,Culture & Heritage,Community and Leisure ,Supplies & Services,Miscellaneous Expenses,Booking Of Acts,19/03/2015,149487,2514.38,Vienna Festival Ballet
Planning & Development,Development Control,Planning & Building,Supplies & Services,Miscellaneous Expenses,Planning Appeal Costs,30/03/2015,147163,2533.5,Allen Planning Ltd
Central Services to the Public,Management & Support Services,IT,Supplies & Services,Services,Consultant Fees,05/03/2015,147764,2550,Deltascheme
Planning & Development,Economic Development,Estates and Economic Development ,Third Party Payments,Other Establishments,Private Contractors,26/03/2015,150937,2600,Purbeck Civil Engineering Limited
Central Services to the Public,Local Tax Collection,Revenues,Supplies & Services,"Printing, Stationery & General Office Expenses",External Printing,30/03/2015,151326,2665.23,Computastat Group Ltd
Central Services to the Public,Management & Support Services,Estates and Economic Development ,Premises related Expenditure,Energy Costs,Gas,30/03/2015,150595,2728.15,Total Gas & Power Ltd
Environmental & Regulatory,Waste management,Environmental,Supplies & Services,"Printing, Stationery & General Office Expenses",External Printing,19/03/2015,150257,2729.75,Cammegh Davies Fleming
Environmental & Regulatory,Regulatory Services,Housing and Environmental Health ,Supplies & Services,Grants and subscriptions,Capital Grants,12/03/2015,149888,3299.85,S & J Building Services (Uk) Ltd
Environmental & Regulatory,Waste management,Environmental,Employees,Indirect Employee Expenses,Agency Staff - Waged Posts,05/03/2015,148987,2752.19,365 Supply Ltd
Cultural & Related,Open Spaces,Environmental,Supplies & Services,"Equipment, Furniture & Materials",Purchase Equip + Materials,05/03/2015,146950,2757.2,Imperial Polythene Products Ltd
Environmental & Regulatory,Regulatory Services,Housing and Environmental Health ,Supplies & Services,Grants and subscriptions,Capital Grants,05/03/2015,149184,3323.72,Spc Bathrooms Ltd
Central Services to the Public,Management & Support Services,Environmental,Transport Related Expenditure,Direct Transport Costs,Diesel,30/03/2015,150666,2772.9,Wessex Petroleum Limited
Cultural & Related,Open Spaces,Environmental,Transport Related Expenditure,Direct Transport Costs,Tyres,19/03/2015,149683,721.27,Ats Euromaster Limited
Environmental & Regulatory,Street Cleansing (not chargeable to Highways),Environmental,Transport Related Expenditure,Direct Transport Costs,Tyres,19/03/2015,149683,685.37,Ats Euromaster Limited
Environmental & Regulatory,Waste management,Environmental,Transport Related Expenditure,Direct Transport Costs,Tyres,19/03/2015,149683,784.49,Ats Euromaster Limited
Environmental & Regulatory,Waste management,Environmental,Transport Related Expenditure,Direct Transport Costs,Tyres,19/03/2015,149683,592.17,Ats Euromaster Limited
Environmental & Regulatory,Regulatory Services,Housing and Environmental Health ,Supplies & Services,Grants and subscriptions,Capital Grants,30/03/2015,150996,3379.42,Nhp (Romsey) Ltd
Planning & Development,Economic Development,Estates and Economic Development ,Supplies & Services,Grants & Subscriptions,Grants,19/03/2015,150371,3388,The George Inn
Central Services to the Public,Management & Support Services,Chief Executive's,Supplies & Services,Services,External Training Consultants,19/03/2015,150105,2900,People Intelligence
Central Services to the Public,Management & Support Services,Environmental,Transport Related Expenditure,Direct Transport Costs,Diesel,19/03/2015,149682,2912.14,Wessex Petroleum Limited
Planning & Development,Community Development,Community and Leisure ,Supplies & Services,Grants & Subscriptions,Grants,18/03/2015,150124,3500,Alamein Community Association
Central Services to the Public,Management & Support Services,Environmental,Transport Related Expenditure,Direct Transport Costs,Diesel,05/03/2015,148762,2964.72,Wessex Petroleum Limited
Central Services to the Public,Management & Support Services,Finance,Supplies & Services,"Printing, Stationery & General Office Expenses",Postage Costs,30/03/2015,150347,2970.45,Whistl South West Ltd
External Trading Accounts,Industrial Estates,Estates and Economic Development ,Supplies & Services,Services,Professional Fees,12/03/2015,149436,3000,Savills (L&P) Ltd
Central Services to the Public,Management & Support Services,IT,Supplies & Services,Services,Training Courses,12/03/2015,149141,3000,Qa Limited
Environmental & Regulatory,Regulatory Services,Housing and Environmental Health ,Supplies & Services,Grants and subscriptions,Capital Grants,26/03/2015,150948,3811,Nhp (Romsey) Ltd
Cultural & Related,Culture & Heritage,Community and Leisure ,Supplies & Services,Communications & Computing,Communication Links,26/03/2015,150802,3252,Virgin Media Payments Ltd
Central Services to the Public,Management & Support Services,Environmental,Supplies & Services,Communications & Computing,Communication Links,26/03/2015,150803,3252,Virgin Media Payments Ltd
Central Services to the Public,Management & Support Services,Environmental,Transport Related Expenditure,Direct Transport Costs,Diesel,19/03/2015,149679,3288.84,Wessex Petroleum Limited
Central Services to the Public,Management & Support Services,Environmental,Transport Related Expenditure,Direct Transport Costs,Diesel,30/03/2015,151207,2955.59,Wessex Petroleum Limited
Central Services to the Public,Management & Support Services,Environmental,Transport Related Expenditure,Direct Transport Costs,Red Derv,30/03/2015,151207,395.03,Wessex Petroleum Limited
Central Services to the Public,Local Land Charges,Legal & Democratic,Supplies & Services,Miscellaneous Expenses,Land Charges Fees,12/03/2015,149466,4047.05,Hampshire County Council
Environmental & Regulatory,Regulatory Services,Housing and Environmental Health ,Supplies & Services,Grants and subscriptions,Capital Grants,05/03/2015,149183,4106.7,Epw Construction
Environmental & Regulatory,Regulatory Services,Housing and Environmental Health ,Supplies & Services,Grants and subscriptions,Capital Grants,26/03/2015,151001,4112.07,Lifestyle Solutions
Environmental & Regulatory,Regulatory Services,Housing and Environmental Health ,Supplies & Services,Grants and subscriptions,Capital Grants,26/03/2015,150993,4129.41,Northfield Property Solutions Ltd
Central Services to the Public,Management & Support Services,Environmental,Transport Related Expenditure,Direct Transport Costs,Diesel,26/03/2015,150148,3250.42,Wessex Petroleum Limited
Central Services to the Public,Management & Support Services,Environmental,Transport Related Expenditure,Direct Transport Costs,Red Derv,26/03/2015,150148,236.3,Wessex Petroleum Limited
Environmental & Regulatory,Regulatory Services,Housing and Environmental Health ,Supplies & Services,Miscellaneous Expenses,Kennel fees,30/03/2015,150898,3370.17,Southampton City Council
Central Services to the Public,Elections,Legal & Democratic,Supplies & Services,"Printing, Stationery & General Office Expenses",External Printing,19/03/2015,150250,3491.09,Financial Data Management Plc
Planning & Development,Development Control,Planning & Building,Supplies & Services,Services,Professional Fees,26/03/2015,150910,3500,Bnp Paribas Real Estate & Property Mgt Uk Ltd
Cultural & Related,Open Spaces,Environmental,Transport Related Expenditure,Direct Transport Costs,Environmental transport costs AMP,12/03/2015,149462,3525,T H White Ltd
Environmental & Regulatory,Regulatory Services,Housing and Environmental Health ,Supplies & Services,Grants and subscriptions,Capital Grants,26/03/2015,150999,4308.07,S & J Building Services (Uk) Ltd
Cultural & Related,Open Spaces,Community and Leisure ,Third Party Payments,Private contractors,Secondary contract - non est,26/03/2015,149476,1331.42,Landmark Timber
Cultural & Related,Open Spaces,Community and Leisure ,Premises related Expenditure,Grounds Maintenance Costs,Gm - Additional Works,26/03/2015,149476,553.73,Landmark Timber
Cultural & Related,Open Spaces,Community and Leisure ,Premises related Expenditure,Grounds Maintenance Costs,Gm - Additional Works,26/03/2015,149476,1708.85,Landmark Timber
Planning & Development,Planning Policy,Plan Pol & Transport,Supplies & Services,Services,Professional Fees,30/03/2015,151212,3607,Ashdown Site Investigation Ltd
Central Services to the Public,Management & Support Services,Environmental,Transport Related Expenditure,Direct Transport Costs,Diesel,26/03/2015,150147,3344.39,Wessex Petroleum Limited
Central Services to the Public,Management & Support Services,Environmental,Transport Related Expenditure,Direct Transport Costs,Red Derv,26/03/2015,150147,425.34,Wessex Petroleum Limited
Planning & Development,Economic Development,Estates and Economic Development ,Supplies & Services,Grants & Subscriptions,Grants,19/03/2015,150107,4500,Enterprise First
Environmental & Regulatory,Street Cleansing (not chargeable to Highways),Environmental,Supplies & Services,"Equipment, Furniture & Materials",Purchase Equip + Materials,26/03/2015,150897,3864,Jrb Enterpise Ltd
Cultural & Related,Recreation & Sport,Community and Leisure ,Third Party Payments,Other Establishments,ALC Management Contract-TVL,30/03/2015,151230,3916.66,Valley Leisure Ltd
Environmental & Regulatory,Regulatory Services,Housing and Environmental Health ,Supplies & Services,Grants and subscriptions,Capital Grants,05/03/2015,149182,4781.42,S & J Building Services (Uk) Ltd
Cultural & Related,Open Spaces,Environmental,Transport Related Expenditure,Direct Transport Costs,Environmental transport costs AMP,30/03/2015,151333,3990,New Forest Farm Machinery Ltd
Planning & Development,Development Control,Planning & Building,Supplies & Services,Miscellaneous Expenses,Planning Appeal Costs,30/03/2015,151257,4830,Oxford City Council
Central Services to the Public,Management & Support Services,Environmental,Transport Related Expenditure,Direct Transport Costs,Diesel,30/03/2015,151349,3679.32,Wessex Petroleum Limited
Central Services to the Public,Management & Support Services,Environmental,Transport Related Expenditure,Direct Transport Costs,Red Derv,30/03/2015,151349,452.05,Wessex Petroleum Limited
Environmental & Regulatory,Street Cleansing (not chargeable to Highways),Environmental,Supplies & Services,"Equipment, Furniture & Materials",Purchase Equip + Materials,26/03/2015,150895,4120,Gum Wand Ltd
Central Services to the Public,Management & Support Services,Environmental,Transport Related Expenditure,Direct Transport Costs,Diesel,05/03/2015,148139,3726,Wessex Petroleum Limited
Central Services to the Public,Management & Support Services,Environmental,Transport Related Expenditure,Direct Transport Costs,Red Derv,05/03/2015,148139,464.4,Wessex Petroleum Limited
Environmental & Regulatory,Regulatory Services,Housing and Environmental Health ,Supplies & Services,Grants and subscriptions,Capital Grants,12/03/2015,149890,4971.88,Lifestyle Solutions
Central Services to the Public,Management & Support Services,Environmental,Transport Related Expenditure,Direct Transport Costs,Vehicles and Plant,19/03/2015,150142,4150,R Hunt (Agricultural Engineers) Ltd
Environmental & Regulatory,Regulatory Services,Housing and Environmental Health ,Supplies & Services,Grants and subscriptions,Capital Grants,26/03/2015,151002,5000,Therm-Eco (E.W.I) Ltd
Central Services to the Public,Management & Support Services,Finance,Supplies & Services,"Printing, Stationery & General Office Expenses",Postage Costs,19/03/2015,150404,5000,Neopost Ltd
Central Services to the Public,Emergency Planning,Corporate & Democratic,Supplies & Services,Grants & Subscriptions,Grants,05/03/2015,149176,5000,Personal data - Data Protection Act 1998
Central Services to the Public,Emergency Planning,Corporate & Democratic,Supplies & Services,Grants & Subscriptions,Grants,26/03/2015,150964,5000,Personal data - Data Protection Act 1998
Central Services to the Public,Management & Support Services,Environmental,Transport Related Expenditure,Direct Transport Costs,Diesel,05/03/2015,148763,4224.19,Wessex Petroleum Limited
Cultural & Related,Recreation & Sport,Community and Leisure ,Premises related Expenditure,Grounds Maintenance Costs,Gm - Additional Works,12/03/2015,149861,4297,Personal data - Data Protection Act 1998
Cultural & Related,Open Spaces,Environmental,Transport Related Expenditure,Direct Transport Costs,Environmental transport costs AMP,30/03/2015,151334,4500,New Forest Farm Machinery Ltd
Environmental & Regulatory,Waste management,Environmental,Supplies & Services,Miscellaneous Expenses,Recycling Bank Emptying,12/03/2015,149699,4516.96,Fcc Recycling (Uk) Ltd
Planning & Development,Planning Policy,Plan Pol & Transport,Supplies & Services,Services,Legal Fees,25/03/2015,150819,5687.5,Cornerstone Barristers
Environmental & Regulatory,Street Cleansing (not chargeable to Highways),Environmental,Supplies & Services,"Equipment, Furniture & Materials",Purchase Equip + Materials,26/03/2015,150714,4870,Wellow Vehicle Sales
"Highways, Roads & Transport",Parking Services,Plan Pol & Transport,Supplies & Services,Services,Professional Fees,05/03/2015,148147,4965.13,Keyline Chartered Security Ltd
Environmental & Regulatory,Street Cleansing (not chargeable to Highways),Environmental,Transport Related Expenditure,Direct Transport Costs,Licences,26/03/2015,150838,225,Peter Stirland Ltd
Environmental & Regulatory,Street Cleansing (not chargeable to Highways),Environmental,Supplies & Services,"Equipment, Furniture & Materials",Purchase Equip + Materials,26/03/2015,150838,4999,Peter Stirland Ltd
Central Services to the Public,Management & Support Services,IT,Supplies & Services,Services,Training Courses,26/03/2015,150104,5500,Fgi Ltd
"Highways, Roads & Transport",Highways and roads - maintenance,Plan Pol & Transport,Supplies & Services,"Equipment, Furniture & Materials",Purchase Equip + Materials,26/03/2015,150275,5561.54,Bournemouth White Lining Ltd
Environmental & Regulatory,Regulatory Services,Housing and Environmental Health ,Supplies & Services,Grants and subscriptions,Capital Grants,26/03/2015,150998,6750,Studio Four Architects Ltd
Central Services to the Public,Management & Support Services,Housing and Environmental Health ,Supplies & Services,Communications & Computing,Computer Hardware,26/03/2015,147765,3100,Sds
Central Services to the Public,Management & Support Services,Housing and Environmental Health ,Supplies & Services,Communications & Computing,Software Maintenance,26/03/2015,147765,314.25,Sds
Central Services to the Public,Management & Support Services,Housing and Environmental Health ,Supplies & Services,Services,Training Courses,26/03/2015,147765,2300,Sds
Central Services to the Public,Local Tax Collection,Revenues,Supplies & Services,Communications & Computing,Software Maintenance,30/03/2015,150986,692.16,Northgate Information Solutions Uk Ltd
Central Services to the Public,Local Tax Collection,Revenues,Supplies & Services,Communications & Computing,Software Maintenance,30/03/2015,150986,2768.64,Northgate Information Solutions Uk Ltd
Housing Services,Housing Benefits ,Revenues,Supplies & Services,Communications & Computing,Software Maintenance,30/03/2015,150986,1730.4,Northgate Information Solutions Uk Ltd
Central Services to the Public,Local Tax Collection,Revenues,Supplies & Services,Communications & Computing,Software Maintenance,30/03/2015,150986,1730.4,Northgate Information Solutions Uk Ltd
Central Services to the Public,Management & Support Services,Estates and Economic Development ,Third Party Payments,Other Establishments,Private Contractors,12/03/2015,149891,5926.92,Timberwise (Uk) Ltd
Central Services to the Public,Management & Support Services,Estates and Economic Development ,Supplies & Services,"Equipment, Furniture & Materials",Purchase Materials (Job Cost),26/03/2015,150636,5931,Cubicle Systems Ltd
Central Services to the Public,Management & Support Services,Environmental,Transport Related Expenditure,Direct Transport Costs,Vehicles and Plant,26/03/2015,150735,5936.11,R Hunt (Agricultural Engineers) Ltd
Central Services to the Public,Management & Support Services,IT,Supplies & Services,Services,Project Consultancy - Systems,26/03/2015,150660,6054,Winchester City Council
"Highways, Roads & Transport",Parking Services,Plan Pol & Transport,Premises related Expenditure,Repairs Alterations & Maintenance of Buildings,Car Park General Repairs,05/03/2015,148187,6071.45,Clearwater 2010 Ltd
Central Services to the Public,Local Tax Collection,Revenues,Supplies & Services,"Printing, Stationery & General Office Expenses",External Printing,30/03/2015,151325,6081.86,Computastat Group Ltd
Central Services to the Public,Management & Support Services,IT,Supplies & Services,Communications & Computing,Computer Hardware,26/03/2015,150153,1400,Dell Computer Corporation Ltd
Central Services to the Public,Management & Support Services,IT,Supplies & Services,Communications & Computing,Computer Hardware,26/03/2015,150153,4780,Dell Computer Corporation Ltd
Central Services to the Public,Management & Support Services,Finance,Employees,Indirect Employee Expenses,Agency Staff - Waged Posts,12/03/2015,147132,6200,Tiaa
Central Services to the Public,Management & Support Services,Finance,Employees,Indirect Employee Expenses,Agency Staff - Waged Posts,30/03/2015,148483,6200,Tiaa
"Highways, Roads & Transport",Parking Services,Plan Pol & Transport,Premises related Expenditure,Repairs Alterations & Maintenance of Buildings,Car Park General Repairs,05/03/2015,148980,6233.06,Volker Highways Ltd
Central Services to the Public,Management & Support Services,Plan Pol & Transport,Supplies & Services,"Equipment, Furniture & Materials",Purchase Equip + Materials,12/03/2015,145407,6551.69,Sse
Central Services to the Public,Management & Support Services,IT,Supplies & Services,Communications & Computing,Computer Hardware,26/03/2015,150973,6614,Dell Computer Corporation Ltd
Central Services to the Public,Management & Support Services,Estates and Economic Development ,Third Party Payments,Other Establishments,Private Contractors,26/03/2015,150703,6683,Westlake Asphalt Company Limited
Central Services to the Public,Management & Support Services,Chief Executive's,Supplies & Services,Services,External Training Consultants,19/03/2015,149831,7000,Learning Pool Limited
Central Services to the Public,Management & Support Services,Chief Executive's,Supplies & Services,Miscellaneous Expenses,Promotions / Special Events,30/03/2015,151467,8859,Carers Together
Central Services to the Public,Local Tax Collection,Revenues,Supplies & Services,"Equipment, Furniture & Materials",Purchase Equip + Materials,26/03/2015,150272,7834.75,Neopost Ltd
Central Services to the Public,Management & Support Services,Plan Pol & Transport,Supplies & Services,"Equipment, Furniture & Materials",Purchase Equip + Materials,12/03/2015,149438,8035.2,Caroway Building & Civil Engineering
Cultural & Related,Open Spaces,Environmental,Transport Related Expenditure,Direct Transport Costs,Environmental transport costs AMP,19/03/2015,150143,8251.11,R Hunt (Agricultural Engineers) Ltd
"Highways, Roads & Transport",Highways and roads - maintenance,Plan Pol & Transport,Premises related Expenditure,Repairs Alterations & Maintenance of Buildings,Highways Repairs,12/03/2015,148494,8358.76,Irvine Grenson Ltd
Central Services to the Public,Management & Support Services,Estates and Economic Development ,Third Party Payments,Other Establishments,Private Contractors,26/03/2015,150674,8360,Andover Roofing Cladding & Maintenance Ltd
Central Services to the Public,Management & Support Services,Plan Pol & Transport,Supplies & Services,"Equipment, Furniture & Materials",Purchase Equip + Materials,26/03/2015,150103,9642.81,Rocon Contractors Ltd
Cultural & Related,Open Spaces,Community and Leisure ,Third Party Payments,Private contractors,Main Contractor Costs,26/03/2015,149489,7091.33,Gristwood & Toms Ltd
Cultural & Related,Open Spaces,Community and Leisure ,Premises related Expenditure,Grounds Maintenance Costs,Non Contract Tree Works,26/03/2015,149489,849.27,Gristwood & Toms Ltd
Cultural & Related,Open Spaces,Community and Leisure ,Premises related Expenditure,Grounds Maintenance Costs,Non Contract Tree Works,26/03/2015,149489,82,Gristwood & Toms Ltd
Cultural & Related,Open Spaces,Community and Leisure ,Premises related Expenditure,Grounds Maintenance Costs,Non Contract Tree Works,26/03/2015,149489,1777.4,Gristwood & Toms Ltd
Central Services to the Public,Management & Support Services,Legal & Democratic,Supplies & Services,"Printing, Stationery & General Office Expenses",Written Media,12/03/2015,149453,10659.24,East Hampshire District Council
Central Services to the Public,Management & Support Services,Plan Pol & Transport,Supplies & Services,"Equipment, Furniture & Materials",Purchase Equip + Materials,19/03/2015,149832,10904.42,Caroway Building & Civil Engineering
Central Services to the Public,Management & Support Services,Finance,Employees,Direct Employee Expenses,Shared service staffing costs,12/03/2015,148808,13763.2,Gosport Borough Council
Central Services to the Public,Management & Support Services,Community and Leisure ,Employees,Direct Employee Expenses,Basic Salaries,26/03/2015,150663,9162.24,Romsey Community School
Central Services to the Public,Management & Support Services,Community and Leisure ,Supplies & Services,Grants & Subscriptions,Grants,26/03/2015,150663,3195.37,Romsey Community School
Central Services to the Public,Management & Support Services,Community and Leisure ,Supplies & Services,Miscellaneous Expenses,Promotions / Special Events,26/03/2015,150663,4909.2,Romsey Community School
Central Services to the Public,Management & Support Services,Estates and Economic Development ,Third Party Payments,Other Establishments,Private Contractors,30/03/2015,150939,14861.4,Temple Lifts Ltd
Central Services to the Public,Management & Support Services,Chief Executive's,Supplies & Services,Communications & Computing,Computer Software,19/03/2015,149867,15000,Northgate Information Solutions Uk Ltd
Central Services to the Public,Management & Support Services,IT,Supplies & Services,Communications & Computing,Communication Links,26/03/2015,150842,16000,Virgin Media Payments Ltd
Central Services to the Public,Management & Support Services,Estates and Economic Development ,Third Party Payments,Other Establishments,Private Contractors,05/03/2015,148527,18225.75,Westgate Construction (Hertford) Ltd
Central Services to the Public,Management & Support Services,Environmental,Transport Related Expenditure,Direct Transport Costs,Vehicles and Plant,30/03/2015,150987,18250,New Forest Farm Machinery Ltd
Central Services to the Public,Management & Support Services,IT,Supplies & Services,Communications & Computing,Software Maintenance,05/03/2015,148497,18975,Esri (Uk) Ltd
Central Services to the Public,Management & Support Services,Chief Executive's,Supplies & Services,Communications & Computing,Software Maintenance,30/03/2015,151224,22158.91,Capita Business Services
Central Services to the Public,Management & Support Services,Environmental,Transport Related Expenditure,Direct Transport Costs,Vehicles and Plant,19/03/2015,150140,22500,R Hunt (Agricultural Engineers) Ltd
Central Services to the Public,Management & Support Services,Estates and Economic Development ,Third Party Payments,Other Establishments,Private Contractors,26/03/2015,150608,28775.5,Prb Building Services
Central Services to the Public,Management & Support Services,Estates and Economic Development ,Third Party Payments,Other Establishments,Private Contractors,26/03/2015,150818,31570.9,Kier Facilities Services Ltd
Cultural & Related,Recreation & Sport,Community and Leisure ,Third Party Payments,Other Establishments,ALC Management Contract-TVL,19/03/2015,150252,34416.67,Valley Leisure Ltd
Environmental & Regulatory,Regulatory Services,Estates and Economic Development ,Premises related Expenditure,Cleaning and domestic supplies,Contract Cleaning - Non Estates,05/03/2015,147892,12779.48,Friends Life Company Ltd
"Highways, Roads & Transport",Parking Services,Plan Pol & Transport,Supplies & Services,Services,Professional Fees,05/03/2015,147892,32861.52,Friends Life Company Ltd
Central Services to the Public,Management & Support Services,IT,Supplies & Services,Communications & Computing,Software Maintenance,19/03/2015,150267,45125.49,Phoenix Software Ltd
Planning & Development,Management & Support Services,Community and Leisure ,Supplies & Services,Miscellaneous Expenses,Miscellaneous Capital Expenses,30/03/2015,149503,61670,Hampshire County Council
Central Services to the Public,Management & Support Services,Estates and Economic Development ,Third Party Payments,Other Establishments,Private Contractors,26/03/2015,150817,61539.71,Kier Facilities Services Ltd
Central Services to the Public,Management & Support Services,Chief Executive's,Supplies & Services,Communications & Computing,Software Maintenance,19/03/2015,149650,1443.82,Idox Software Ltd
Central Services to the Public,Management & Support Services,IT,Supplies & Services,Communications & Computing,Software Maintenance,19/03/2015,149650,32840.4,Idox Software Ltd
Environmental & Regulatory,Community Development,Community and Leisure ,Supplies & Services,Communications & Computing,Software Maintenance,19/03/2015,149650,600,Idox Software Ltd
Planning & Development,Development Control,Planning & Building,Supplies & Services,Communications & Computing,Software Maintenance,19/03/2015,149650,46550.31,Idox Software Ltd
Planning & Development,Building Control,Planning & Building,Supplies & Services,Communications & Computing,Software Maintenance,19/03/2015,149650,7289.94,Idox Software Ltd
Central Services to the Public,Management & Support Services,Environmental,Transport Related Expenditure,Direct Transport Costs,Vehicles and Plant,19/03/2015,150141,93700.72,R Hunt (Agricultural Engineers) Ltd
